Cogmind - Beta 16 @@@ ROGUE MODE // 2025.11.10 @ 00:18:49 Player: shapeshifter Result: Destroyed by I4-RU4(R) with Subdweller Machine Gun Performance ------------- Evolutions (0) 0 Regions Visited (2) 400 Robots Destroyed (20) 100 Value Destroyed (589) 589 Prototype IDs (12) 240 Alien Tech Used (0) 0 Bonus (0) 0 TOTAL SCORE: 1329 Bonus ------- None Cogmind --------- Core Integrity 0/250 Matter 201/300 Energy 144/160 System Corruption 0% Temperature Cool (0) Movement Treading (160) Location -10/Subcaves Parts ------- > --- POWER (1) -------- Light Nuclear Core > --- PROPULSION (2) --- Light Treads Light Treads > --- UTILITY (2) ------ Large Storage Unit > --- WEAPON (2) ------- Small Laser Small Laser > --- INVENTORY (15) --- Light Treads Light Treads Light Treads Wheel Compact Wheel Small Storage Unit High-capacity Storage Unit Makeshift System Shield Power Bank Battle Rifle Grenade Launcher Subdweller Shrapnel Launcher Datajack Peak State ------------ > --- POWER ------------ Light Nuclear Core > --- PROPULSION ------- Light Treads Light Treads > --- UTILITY ---------- Large Storage Unit Light Armor Plating > --- WEAPON ----------- Small Laser Assault Rifle > --- INVENTORY -------- Light Nuclear Core Light Treads Light Treads Light Treads Light Treads Light Treads Wheel Compact Wheel Small Storage Unit High-capacity Storage Unit Grenade Launcher Datajack [Rating: 10] Favorites ----------- Power Light Ion Engine Engine Light Ion Engine Power Core Light Nuclear Core Propulsion Light Treads Treads Light Treads Utility Large Storage Unit Device Seismic Detector Storage Large Storage Unit Protection Light Armor Plating Weapon Small Laser Energy Gun Small Laser Ballistic Gun Assault Rifle Launcher Grenade Launcher Build | -11 -10 -10 ------- Run | Yrd Mat Sub Slots Evolved . | . . . Power . | . . . Propulsion . | . . . Utility . | . . . Weapon . | . . . Parts Attached 19 | 7 6 6 Power 4 | 1 2 1 Engine 2 | 1 1 . Core 2 | . 1 1 Reactor . | . . . Propulsion 5 | 2 1 2 Treads 5 | 2 1 2 Leg . | . . . Wheel . | . . . Hover . | . . . Flight . | . . . Utility 4 | 2 2 . Device 1 | 1 . . Storage 2 | 1 1 . Processor . | . . . Hackware . | . . . Protection 1 | . 1 . Artifact . | . . . Weapon 6 | 2 1 3 Energy Gun 4 | 1 1 2 Energy Cannon . | . . . Ballistic Gun 1 | 1 . . Ballistic Cannon . | . . . Launcher 1 | . . 1 Special Weapon . | . . . Impact Weapon . | . . . Slashing Weapon . | . . . Piercing Weapon . | . . . Special Melee Weapon . | . . . Unidentified Prototypes . | . . . Parts Lost 8 | . 4 4 Power 3 | . 2 1 Propulsion . | . . . Utility 2 | . 1 1 Weapon 3 | . 1 2 Highest Loss Streak 3 | . 3 3 To Critical Strikes . | . . . Average Backups 11 | 3 12 11 Power 1 | . 1 . Propulsion 5 | 1 6 5 Utility 2 | . 2 2 Weapon 1 | . 2 2 Tool/Special . | . . . Unused Backups 11 | . . 11 Power . | . . . Propulsion 5 | . . 5 Utility 3 | . . 3 Weapon 2 | . . 2 Tool/Special 1 | . . 1 Average Slot Usage (%) 92 | . 99 80 Engine 7 | . 12 . Core 4 | . 1 8 Treads 28 | . 28 28 Device 7 | . 12 . Storage 14 | . 14 14 Protection 1 | . 1 2 Energy Gun 16 | . 13 21 Ballistic Gun 9 | . 14 2 Launcher 1 | . . 2 Peak Build Rating 10 | 7 10 10 Average Rating 7 | 4 7 8 On Entrance 5 | . 7 10 Avg Prop Armor Cover (%) . | . . . Naked Turns . | . . . Heaviest Build 31 | 14 31 31 Greatest Support 40 | 40 40 40 Greatest Overweight (x) . | . . . Average Overweight (x) . | . . . Largest Inventory Capacity 15 | 8 15 15 Average Capacity 14 | 7 14 15 Most Carried 15 | 6 15 14 Average Carried 12 | 3 13 11 Final Capacity 15 | 8 15 15 Final Carried 14 | 4 14 13 Class Distribution -------------------- 100% | Mutant Dominant Class ---------------- Mutant | -10/Materials Mutant | -10/Subcaves Resources | -11 -10 -10 ----------- Run | Yrd Mat Sub Matter Collected 565 | 281 218 66 Remotely . | . . . Salvage Created 748 | 64 555 129 Parts 36 | 6 26 4 Haulers Intercepted 1 | . 1 . Recyclers Shooed . | . . . Parts Field Recycled . | . . . Retrieved Matter . | . . . Parts Self-Destructed 7 | . . 7 Prevented . | . . . Parts Restored . | . . . Kills | -11 -10 -10 ------- Run | Yrd Mat Sub Combat Hostiles Destroyed 14 | . 11 3 Guns 14 | . 11 3 Classes Destroyed 5 | 1 3 1 Tunneler 3 | 3 . . Hauler 1 | . 1 . Watcher 2 | . 2 . Grunt 13 | . 11 2 Subdweller 1 | . . 1 Best Kill Streak 3 | 2 3 2 Combat Bots Only 2 | . 2 2 Max Kills in Single Turn 1 | 1 1 1 Gunslinging . | . . . Exploded . | . . . Melee . | . . . Uniques/NPCs Destroyed . | . . . Combat | -11 -10 -10 -------- Run | Yrd Mat Sub Hostile Shots Fired 127 | . 74 53 Missed 26 | . 17 9 Hits 101 | . 57 44 Projectile 101 | . 57 44 Critical Strikes 1 | . 1 . Damage Taken 1454 | . 748 706 Core 252 | . 126 126 Absorbed by Shields . | . . . Core Remaining (%) 100 | 100 . . Volleys Fired 100 | 5 58 37 Largest 2 | 2 2 2 Hottest 80 | 60 60 80 Shots Fired 183 | 10 114 59 Gun 177 | 10 114 53 Cannon . | . . . Launcher 6 | . . 6 Special . | . . . Kinetic 73 | 5 58 10 Thermal 104 | 5 56 43 Explosive 6 | . . 6 Electromagnetic . | . . . Robot Hit Streak 12 | 2 12 12 Robot Miss Streak 4 | 1 4 2 Penetration Max . | . . . Secondary Targets 1 | . 1 . Max Gunslinging Chain 1 | . 1 . Shots Hit Robots 113 | 5 75 33 Core Hits 43 | 3 30 10 Critical Kills . | . . . Critical Parts Destroyed . | . . . Critical Strikes . | . . . Melee Attacks . | . . . Impact . | . . . Slashing . | . . . Piercing . | . . . Sneak Attacks . | . . . Combat Hostiles . | . . . Follow-up Attacks . | . . . Damage Inflicted 1344 | 58 923 363 Guns 1344 | 58 923 363 Cannons . | . . . Explosions . | . . . Melee . | . . . Ramming . | . . . Kinetic 627 | 36 518 73 Thermal 717 | 22 405 290 Explosive . | . . . Electromagnetic . | . . . Impact . | . . . Slashing . | . . . Piercing . | . . . Highest Corruption . | . . . Average Corruption . | . . . Corruption Purged . | . . . Corruption Blocked . | . . . Overload Shots . | . . . Overflow Damage . | . . . Projectiles . | . . . Explosions . | . . . Melee . | . . . Knockbacks . | . . . Impact . | . . . Kinetic . | . . . Secondary . | . . . Self-Inflicted Damage 34 | . . 34 Shots 1 | . . 1 Rammed . | . . . Targets Rammed . | . . . Kicked . | . . . Crushed . | . . . Highest Temperature 78 | . 78 . Average Temperature 25 | . 25 . Received Heat Transfer 738 | . 432 306 Siege Activations . | . . . Martial Activations . | . . . Shielding Activations . | . . . Robots Disrupted . | . . . Combat Hostiles . | . . . Robots Corrupted . | . . . Combat Hostiles . | . . . Parts Fried . | . . . Impact Corruptions . | . . . Robots Melted . | . . . Combat Hostiles . | . . . Parts Melted . | . . . Heat Transferred 1600 | 50 900 650 Parts Sabotaged . | . . . Parts Stolen . | . . . Parts Stripped . | . . . Power Chain Reactions . | . . . Alert | -11 -10 -10 ------- Run | Yrd Mat Sub Maximum Alert Level . | . . . Low Security (%) 100 | 100 100 . Level 1 . | . . . Level 2 . | . . . Level 3 . | . . . Level 4 . | . . . Level 5 . | . . . High Security . | . . . Max Security . | . . . Peak Influence 110 | 5 110 . Initial . | . . . Average 21 | 1 23 . Influence Increases 473 | 15 408 50 Destroy 0b10 Robot/C 260 | . 220 40 Destroy 0b10 Robot/NC 30 | 15 15 . Destroy Leader 76 | . 66 10 Successful Hack 32 | . 32 . Select Force Hacks 60 | . 60 . Partial Spotted 15 | . 15 . Influence Decreases 473 | 15 344 114 Entered New Map 32 | . . 32 Time Decay 391 | 15 304 72 Lost Part 50 | . 40 10 Squads Dispatched 5 | . 5 . Investigation 3 | . 3 . Extermination . | . . . Reinforcement 2 | . 2 . Assault . | . . . Garrison . | . . . Intercept . | . . . Searches Triggered . | . . . Construction Impeded . | . . . Haulers Reinforced . | . . . Active Scanning Responses . | . . . Cargo Convoy Interrupts . | . . . Stealth | -11 -10 -10 --------- Run | Yrd Mat Sub Distress Signals . | . . . Communications Jammed . | . . . Distress Signals . | . . . Times Spotted 20 | . 15 5 Peak Tracking Total 2 | . 2 2 Tactical Retreats . | . . . Traps | -11 -10 -10 ------- Run | Yrd Mat Sub Traps Triggered 1 | . 1 . Indirectly . | . . . Trap Hack Attempts . | . . . Triggered . | . . . Disarmed . | . . . Reprogrammed . | . . . Reused . | . . . Traps Extracted . | . . . Installed . | . . . Triggered . | . . . Machines | -11 -10 -10 ---------- Run | Yrd Mat Sub Machines Disabled 2 | . . 2 Max in Single Turn 1 | . . 1 Machines Repaired . | . . . Machines Dismantled . | . . . Machines Sabotaged . | . . . Overloaded Fab Kills . | . . . Hacking | -11 -10 -10 --------- Run | Yrd Mat Sub Machines Accessed 8 | . 7 1 Terminals 5 | . 5 . Fabricators . | . . . Repair Stations . | . . . Recycling Units 2 | . 2 . Scanalyzers . | . . . Garrison Access . | . . . Total Hacks 20 | . 19 1 Successful 13 | . 12 1 Failed 7 | . 7 . Catastrophic 1 | . 1 . Database Lockouts . | . . . Manual 18 | . 18 . Terminals 15 | . 15 . Fabricators . | . . . Repair Stations . | . . . Recycling Units 4 | . 4 . Scanalyzers . | . . . Garrison Access . | . . . Terminal Hacks 4 | . 3 1 Terminal Index 1 | . 1 . Zone Layout 2 | . 2 . Proto ID Catalog 1 | . . 1 Fabricator Hacks . | . . . Repair Station Hacks . | . . . Recycling Unit Hacks 2 | . 2 . Retrieve Components 2 | . 2 . Scanalyzer . | . . . Garrison Access Hacks . | . . . Unauthorized Hacks 7 | . 7 . Terminals 5 | . 5 . Skim 5 | . 5 . Fabricators . | . . . Repair Stations . | . . . Recycling Units 2 | . 2 . Tunnel 2 | . 2 . Scanalyzers . | . . . Garrison Access . | . . . Data Cores Recovered . | . . . Used . | . . . Hacking Detections 5 | . 5 . Full Trace Events . | . . . Feedback Events . | . . . Feedback Blocked . | . . . Robot Schematics Acquired . | . . . Robots Built . | . . . Authchips . | . . . Time . | . . . Total Robot Build Rating . | . . . Part Schematics Acquired . | . . . Parts Built . | . . . Authchips . | . . . Time . | . . . Total Part Build Rating . | . . . Part Studies Acquired . | . . . Parts Repaired . | . . . Time . | . . . Parts Recycled . | . . . Recycled Matter . | . . . Retrieved Matter . | . . . Retrieved Components 9 | . 9 . Parts Scanalyzed . | . . . Part Schematics Acquired . | . . . Parts Damaged . | . . . Bothacking | -11 -10 -10 ------------ Run | Yrd Mat Sub Used RIF Installer . | . . . Robots Hacked . | . . . Non-combat . | . . . Combat . | . . . Robot Hacks Applied . | . . . Relay Couplers Released . | . . . Fabnet Peak Effective % . | . . . Robots Rewired . | . . . Allies Hacked . | . . . Hacks Repelled . | . . . Allies | -11 -10 -10 -------- Run | Yrd Mat Sub Total Allies . | . . . Largest Group . | . . . Highest-Rated Group . | . . . Highest-Rated Ally . | . . . Total Orders . | . . . Ally Attacks . | . . . Total Damage . | . . . Kills . | . . . Allies Corrupted . | . . . Allies Melted . | . . . Intel | -11 -10 -10 ------- Run | Yrd Mat Sub Active Infowar (turns) 1150 | 25 1125 . Seismic 1150 | 25 1125 . Robot Analysis Total . | . . . Derelict Logs Recovered . | . . . Drone Launches . | . . . Drone Recoveries . | . . . Exploration | -11 -10 -10 ------------- Run | Yrd Mat Sub Turns Passed 2109 | 115 1244 750 Spaces Moved 949 | 59 493 397 Core 18 | 18 . . Treads 931 | 41 493 397 Legs . | . . . Wheels . | . . . Hover . | . . . Flight . | . . . Fastest Speed 50 | 50 160 160 Average Speed 157 | 126 160 160 Slowest Speed 160 | 160 160 160 Overloaded Moves . | . . . Propulsion Burnouts . | . . . Robots Hopped . | . . . Potential Cave-ins . | . . . Cave-ins Triggered . | . . . Exploration Rate (%) 40 | 4 87 31 Regions Visited 2 Branch Regions 1 Pre-discovered Areas 5 | . 5 . Known Exits Taken . | . . . Unknown Exits Taken 2 | 1 1 . Scrap Searched 4 | . . 4 Spaces Dug . | . . . Terrain Destroyed 14 | . . 14 Melee . | . . . Projectile . | . . . AOE 14 | . . 14 Terrain Rammed . | . . . Walls Destroyed . | . . . Machines Disabled . | . . . Actions | -11 -10 -10 --------- Run | Yrd Mat Sub Total 1377 | 90 834 453 Wait 275 | 9 262 4 Move 947 | 58 492 397 Hop . | . . . Pick Up 30 | 11 15 4 Fast Attach . | . . . Attach 14 | 7 4 3 Detach . | . . . Swap 8 | . 2 6 Drop 3 | . 1 2 Fire 100 | 5 58 37 Melee . | . . . Ram . | . . . Kick . | . . . Crush . | . . . Escape Stasis . | . . . Rewire . | . . . Trap . | . . . Miscellaneous . | . . . Route ------- -11/Scrapyard -10/Materials (discovered 5 exits: *Mat x3 / [*Min] / *Sub) -10/Subcaves History --------- Turn | Location | Event 11 | -11/Scrapyard | Discovered new exit (range 16) 116 | -11/Scrapyard | Entered Materials 313 | -10/Materials | Build established: Mutant 344 | -10/Materials | Discovered new exit (range 7) 894 | -10/Materials | Discovered new exit (range 13) 894 | -10/Materials | Discovered new exit (range 15) 1127 | -10/Materials | Identified exit to Materials 1176 | -10/Materials | Learned Storage stockpile data 1216 | -10/Materials | Learned 4 Recycling zone layouts 1224 | -10/Materials | Core integrity fell below 50% 1248 | -10/Materials | Learned location of Subcaves (-10) 1272 | -10/Materials | Learned Storage emergency access door positions 1278 | -10/Materials | Lost 3 parts (1p1u1w) 1287 | -10/Materials | Learned location of Storage (-8) 1339 | -10/Materials | Discovered new exit (range 5) 1360 | -10/Materials | Entered Subcaves 1489 | -10/Subcaves | Core integrity fell below 20% 1509 | -10/Subcaves | Lost 3 parts (1u2w) 1661 | -10/Subcaves | Disturbed a concealed Subdweller 1856 | -10/Subcaves | Visited 4L-MR0's lab 1912 | -10/Subcaves | Found Power Bank 2098 | -10/Subcaves | A swath of the cavern ceiling suddenly collapsed 2110 | -10/Subcaves | Destroyed by I4-RU4(R) with Subdweller Machine Gun Last Messages --------------- Arachnoskeleton Cargo Legs Tripod Weapons Platform Hoverbase Flightbrick Gun Armor Tower Shield Power Bank Rainbow Chip VL-GR5's Exoskeleton "Deathgrip" Powered Cannon 01885_ 4L-MR0 mumbles: "I'm surprised some of them are even willing to come in here given their fear of my usual visitors." 01888_ Machine disabled. 01896_ Testing Chamber breached. 01902_ 4L-MR0 mumbles: "Who knows where that last prototype ended up, probably tossed aside somewhere as if it were useless junk..." 01912_ Acquired Power Bank. 01939_ Acquired Battle Rifle. A swath of the cavern ceiling suddenly collapses. Map ----- +----------------------------------------------------+ | ?????????????????????????????????????????????????? | | ?????????????????????????????????????????????????? | | ?????????????????????????????????????????????????? | | ?????????????????????????????????????????????????? | | ?????????????????????#????????????????##?????????? | | ?????????????????????" ??????????????## #???????## | | ?????????????????????? ?????????????## ??????## | | ?????????????????????? ????????????# ###???# | | ??????????????????????? ????????????# #???# | | ??????????????????????? ????????????# #???# | | ???????????????????????? ??????????????# ##### | | ????????????????????????# ??????????????# | | ????????????????????????# ??????????????# | | ????????????????????????? ??####???????## ### | | ?????????????????????????? ??# ####?????# ###?? | | ?????????????????????????## ?# ###?### #???? | | ?????????????????????????# ## ### #???? | | ?????????????????????????# ## #???? | | ?????????????????????????## ## ## ##???? | | ??????????????????????????##### # ######? | | ?????????????????????????????## ### #### ## | | ???????????????????????????### ## #?# # | | ??????????????????????????## RR ### ### # | | ?????????????????????????## #?## ## # | | ??????????????????##### ## ## #??## # | | ??????????? #@ ## #???# # | | ??????????? ### ## ###??## | | ??????????? ## # ###??# | | ????????????????## ## ###??# ### | | ?????????????????# #??# ????# ## ##?# | | ?????????????????###????## #?? #####??# | | ?????????????????????????# ? #???????# | | ?????????????????????????## ? #????????# | | ??????????????????????????# ?#######?????????# | | ??????????????????????????# ????????????????# | | ?????????????????????????? ???????????????? | | ?????????????????????????? ??????????????? | | ??????????????????????????####??????????????###### | | ?????????????????????????????????????????????????# | | ?????????????????????????????????????????????????? | | ?????????????????????????????????????????????????? | | ?????????????????????????????????????????????????? | | ?????????????????????????????????????????????????? | | ?????????????????????????????????????????????????? | | ?????????????????????????????????????????????????? | | ?????????????????????????????????????????????????? | | ?????????????????????????????????????????????????? | | ?????????????????????????????????????????????????? | | ?????????????????????????????????????????????????? | | ?????????????????????????????????????????????????? | +----------------------------------------------------+ Best States ------------- Heat Dissipation 25 Energy Generation 14 Energy Capacity 250 Matter Stores 300 Matter Capacity 300 Sight Range 16 Terrain Scan Density 10 Armor Coverage 150 Evasion (%) 50 Recoil Reduction 2 Item Schematics ----------------- None Robot Schematics ------------------ None Fabricated ------------ Nothing Repaired ---------- Nothing Studied --------- None Alien Tech Used ----------------- None Achievements -------------- None Challenges ------------ None Game ------ Seed InsulatedDerelictLegs Manual? 0 Play Time 00:10:10 Cumulative 485.4 hours Start 2025.11.10 @ 00:09:06 End 2025.11.10 @ 00:18:49 Sessions 1 Manual Loads 0 Difficulty Rogue Special Mode None Game No. 635 Rogue 635 Adventurer 0 Explorer 0 Win Type - Total 15 Types 7/0/2/2/1/0/2/1/0/0 Lore% 90 Gallery% 85 Achievement% 65 Wizard Run 0 Options --------- Layout 0 ASCII 0 Keyboard 0 Movement Mouse Keybinds 0 Fullscreen 1 Font 24/Terminus Map View 76x50 Zoom Use 0% Tactical HUD 1 Map Filters NONE Filters NONE Steam 1 RUN: 4f2a9ac9-ddab-4cf1-b8bc-fe2bbf4a29b7